Workbook

Sheet Swedish T-Bills and Bonds
D2: Last checked 2008-12-03, 4:30 P.M.
B3: Outsantding Swedish Treasury bills and Bonds
B4: Auction Date | C4: No | D4: ISIN code | E4: Maturity | F4: Yield | G4: Coupon % | H4: Next Coupon | I4: Price
A5: Treasure bills | B5: 2008-11-21 | C5: 0,25M | D5: SE0002269290 | E5: 2008-12-17 | F5: 3.274 | G5: 0 | H5: 2008-12-17 | I5: 99.8
B6: 2008-12-02 | C6: 1M | D6: SE0002624957 | E6: 2009-01-21 | F6: 2.756 | G6: 0 | H6: 2009-01-21 | I6: 99.634
B7: 2008-11-26 | C7: 2M | D7: SE0002685982 | E7: 2009-02-18 | F7: 2.765 | G7: 0 | H7: 2009-02-18 | I7: 99.374
B8: 2008-10-15 | C8: 3M | D8: SE0002591412 | E8: 2009-03-18 | F8: 3.11 | G8: 0 | H8: 2009-03-18 | I8: 98.704
B9: 2008-11-26 | C9: 6M | D9: SE0002693457 | E9: 2009-06-17 | F9: 2.394 | G9: 0 | H9: 2009-06-17 | I9: 98.681
A10: Bonds | B10: 2008-01-09 | C10: 1048 | D10: SE0001173709 | E10: 2009-12-01 | F10: 3.949 | G10: 4 | H10: 2009-12-01 | I10: 96.083
B11: 2006-08-02 | C11: 1045 | D11: SE0000722852 | E11: 2011-03-15 | F11: 3.641 | G11: 5.25 | H11: 2009-03-15 | I11: 106.687
B12: 2008-10-08 | C12: 1046 | D12: SE0000909640 | E12: 2012-10-08 | F12: 3.242 | G12: 5.5 | H12: 2009-10-08 | I12: 108.318
B13: 2008-11-19 | C13: 1041 | D13: SE0000412389 | E13: 2014-05-05 | F13: 2.917 | G13: 6.75 | H13: 2009-05-05 | I13: 119.024
B14: 2008-04-29 | C14: 1049 | D14: SE0001250135 | E14: 2015-08-12 | F14: 4.098 | G14: 4.5 | H14: 2009-08-12 | I14: 102.467
B15: 2008-09-24 | C15: 1050 | D15: SE0001517699 | E15: 2016-07-12 | F15: 3.91 | G15: 3 | H15: 2009-07-12 | I15: 93.98
B16: 2008-06-25 | C16: 1051 | D16: SE0001811399 | E16: 2017-08-12 | F16: 4.493 | G16: 3.75 | H16: 2009-08-12 | I16: 94.53
B17: 2008-12-03 | C17: 1052 | D17: SE0002241083 | E17: 2019-03-12 | F17: 2.648 | G17: 4.25 | H17: 2009-03-12 | I17: 114.346
B18: 2008-02-20 | C18: 1047 | D18: SE0001149311 | E18: 2020-12-01 | F18: 4.181 | G18: 5 | H18: 2009-12-01 | I18: 107.961
B20: Own Calculations
B21: T in years | C21: T for next Coupon
B22: =(E5-'[2]Nelson&Siegel Parametrization'!$C$3)/365 -> 0.02465753425 | C22: =(H5-'[2]Nelson&Siegel Parametrization'!$C$3)/365 -> 0.02465753425
B23: =(E6-'[2]Nelson&Siegel Parametrization'!$C$3)/365 -> 0.1205479452 | C23: =(H6-'[2]Nelson&Siegel Parametrization'!$C$3)/365 -> 0.1205479452
B24: =(E7-'[2]Nelson&Siegel Parametrization'!$C$3)/365 -> 0.197260274 | C24: =(H7-'[2]Nelson&Siegel Parametrization'!$C$3)/365 -> 0.197260274
B25: =(E8-'[2]Nelson&Siegel Parametrization'!$C$3)/365 -> 0.2739726027 | C25: =(H8-'[2]Nelson&Siegel Parametrization'!$C$3)/365 -> 0.2739726027
B26: =(E9-'[2]Nelson&Siegel Parametrization'!$C$3)/365 -> 0.5232876712 | C26: =(H9-'[2]Nelson&Siegel Parametrization'!$C$3)/365 -> 0.5232876712
B27: =(E10-'[2]Nelson&Siegel Parametrization'!$C$3)/365 -> 0.9808219178 | C27: =(H10-'[2]Nelson&Siegel Parametrization'!$C$3)/365 -> 0.9808219178
B28: =(E11-'[2]Nelson&Siegel Parametrization'!$C$3)/365 -> 2.265753425 | C28: =(H11-'[2]Nelson&Siegel Parametrization'!$C$3)/365 -> 0.2657534247
B29: =(E12-'[2]Nelson&Siegel Parametrization'!$C$3)/365 -> 3.835616438 | C29: =(H12-'[2]Nelson&Siegel Parametrization'!$C$3)/365 -> 0.8328767123
B30: =(E13-'[2]Nelson&Siegel Parametrization'!$C$3)/365 -> 5.408219178 | C30: =(H13-'[2]Nelson&Siegel Parametrization'!$C$3)/365 -> 0.4054794521
B31: =(E14-'[2]Nelson&Siegel Parametrization'!$C$3)/365 -> 6.679452055 | C31: =(H14-'[2]Nelson&Siegel Parametrization'!$C$3)/365 -> 0.6767123288
B32: =(E15-'[2]Nelson&Siegel Parametrization'!$C$3)/365 -> 7.597260274 | C32: =(H15-'[2]Nelson&Siegel Parametrization'!$C$3)/365 -> 0.5917808219
B33: =(E16-'[2]Nelson&Siegel Parametrization'!$C$3)/365 -> 8.682191781 | C33: =(H16-'[2]Nelson&Siegel Parametrization'!$C$3)/365 -> 0.6767123288
B34: =(E17-'[2]Nelson&Siegel Parametrization'!$C$3)/365 -> 10.2630137 | C34: =(H17-'[2]Nelson&Siegel Parametrization'!$C$3)/365 -> 0.2575342466
B35: =(E18-'[2]Nelson&Siegel Parametrization'!$C$3)/365 -> 11.9890411 | C35: =(H18-'[2]Nelson&Siegel Parametrization'!$C$3)/365 -> 0.9808219178

Sheet Main
A3: Face Value | B3: Volatility | C3: No | D3: Time to Maturity | E3: Auction Date | F3: Maturity | G3: Price | H3: Coupon % | I3: Bond Yield | J3: Change
A4: 100 | B4: 0.021 | J4: Period
D5: 0.02465753425 | E5: 2008-11-21 | F5: 2008-12-17 | G5: 0.998 | H5: 0 | I5: 3.274 | J5: 0
D6: 0.1205479452 | E6: 2008-12-02 | F6: 2009-01-21 | G6: 0.99634 | H6: 0 | I6: 2.756 | J6: =D6-D5 -> 0.09589041096
D7: 0.197260274 | E7: 2008-11-26 | F7: 2009-02-18 | G7: 0.99374 | H7: 0 | I7: 2.765 | J7: =D7-D6 -> 0.07671232877
D8: 0.2739726027 | E8: 2008-10-15 | F8: 2009-03-18 | G8: 0.98704 | H8: 0 | I8: 3.11 | J8: =D8-D7 -> 0.07671232877
D9: 0.5232876712 | E9: 2008-11-26 | F9: 2009-06-17 | G9: 0.98681 | H9: 0 | I9: 2.394 | J9: 0.2493150685
D10: 0.9808219178 | E10: 2008-01-09 | F10: 2009-12-01 | G10: 0.96083 | H10: 4 | I10: 3.949 | J10: 0.4575342466
D11: 2.265753425 | E11: 2008-08-02 | F11: 2011-03-15 | G11: 1.06687 | H11: 5.25 | I11: 3.641 | J11: 1.284931507
D12: 3.835616438 | E12: 2008-10-08 | F12: 2012-10-08 | G12: 1.08318 | H12: 5.5 | I12: 3.242 | J12: 1.569863014
D13: 5.408219178 | E13: 2008-11-19 | F13: 2014-05-05 | G13: 1.19024 | H13: 6.75 | I13: 2.917 | J13: 1.57260274
D14: 6.679452055 | E14: 2008-04-29 | F14: 2015-08-12 | G14: 1.02467 | H14: 4.5 | I14: 4.098 | J14: 1.271232877
D15: 7.597260274 | E15: 2008-09-24 | F15: 2016-07-12 | G15: 0.9398 | H15: 3 | I15: 3.91 | J15: 0.9178082192
D16: 8.682191781 | E16: 2008-06-25 | F16: 2017-08-12 | G16: 0.9453 | H16: 3.75 | I16: 4.493 | J16: 1.084931507
D17: 10.2630137 | E17: 2008-12-03 | F17: 2019-03-12 | G17: 1.14346 | H17: 4.25 | I17: 2.648 | J17: 1.580821918
D18: 11.9890411 | E18: 2008-02-20 | F18: 2020-12-01 | G18: 1.07961 | H18: 5 | I18: 4.181 | J18: 1.726027397
C20: Forward Rate | D20: Var (∑ r ) | E20: ∑ Delta | F20: Delta | G20: Drift | H20: ∑ Drift | I20: Exd Short Rate
C21: 0.002002002671 | D21: 0 | E21: 0.0002205 | F21: 0.0002205 | G21: -0.0001167911537 | H21: -0.0001167911537 | I21: 0.002222502671
C22: 0.001664711517 | D22: 0.000441 | E22: 0.000882 | F22: 0.0006615 | G22: 0.001609750253 | H22: 0.001492959099 | I22: 0.002326211517
C23: 0.00261296177 | D23: 0.002205 | E23: 0.0019845 | F23: 0.0011025 | G23: 0.005254575794 | H23: 0.006747534893 | I23: 0.00371546177
C24: 0.006765037564 | D24: 0.006174 | E24: 0.003528 | F24: 0.0015435 | G24: -0.004988490472 | H24: 0.001759044421 | I24: 0.008308537564
C25: 0.0002330470918 | D25: 0.01323 | E25: 0.0055125 | F25: 0.0019845 | G25: 0.02843147702 | H25: 0.03019052144 | I25: 0.002217547092
C26: 0.02668002411 | D26: 0.024255 | E26: 0.007938 | F26: 0.0024255 | G26: -0.1289414368 | H26: -0.09875091537 | I26: 0.02910552411
C27: -0.1046869127 | D27: 0.040131 | E27: 0.0108045 | F27: 0.0028665 | G27: 0.09238138147 | H27: -0.006369533894 | I27: -0.1018204127
C28: -0.01517203122 | D28: 0.06174 | E28: 0.014112 | F28: 0.0033075 | G28: -0.07577427704 | H28: -0.08214381094 | I28: -0.01186453122
C29: -0.09425380827 | D29: 0.089964 | E29: 0.0178605 | F29: 0.0037485 | G29: 0.2477866662 | H29: 0.1656428553 | I29: -0.09050530827
C30: 0.1497843579 | D30: 0.125685 | E30: 0.02205 | F30: 0.0041895 | G30: -0.05913605608 | H30: 0.1065067992 | I30: 0.1539738579
C31: 0.08645880185 | D31: 0.169785 | E31: 0.0266805 | F31: 0.0046305 | G31: -0.08766355261 | H31: 0.01884324657 | I31: 0.09108930185
C32: -0.005835250763 | D32: 0.223146 | E32: 0.031752 | F32: 0.0050715 | G32: -0.1794049443 | H32: -0.1605616978 | I32: -0.0007637507626
C33: -0.1903116951 | D33: 0.28665 | E33: 0.0372645 | F33: 0.0055125 | G33: 0.2532830838 | H33: 0.09272138607 | I33: -0.1847991951
C34: 0.05745888874 | D34: 0.361179 | E34: 0.043218 | F34: 0.0059535 | H34: 0.3460044699 | I34: 0.06341238874
D35: 0.447615
B38: Interest rate
B39: Bond price | P39: 13
O41: 12
P42: 13
N43: 11 | O43: 12
N44: 11
M45: 10
P46: =$C$72+H33+B4*(P42-0)*SQRT(J18) -> 0.5147967028
L47: 9 | P47: =(2*A4*EXP(-P46))*0.5 -> 59.76220772
O48: =$C$72+H32+B4*(O43-0)*SQRT(J17) -> 0.2196921577
K49: 8 | O49: =(P47*EXP(-O48)+P51*EXP(-O48))*0.5 -> 49.33586603
N50: =$C$72+H31+B4*(N44-0)*SQRT(J16) -> 0.3228653403 | P50: =$C$72+H33+B4*(P42-2)*SQRT(J18) -> 0.4596177908
J51: 7 | N51: =(O49*EXP(-N50)+O53*EXP(-N50))*0.5 -> 37.75945104 | P51: =(2*A4*EXP(-P50))*0.5 -> 63.15249741
M52: =$C$72+H30+B4*(M45-0)*SQRT(J15) -> 0.3711040344 | O52: =$C$72+H32+B4*(O43-2)*SQRT(J17) -> 0.1668852466
I53: 6 | M53: =(N51*EXP(-M52)+N55*EXP(-M52))*0.5 -> 28.18735288 | O53: =(P51*EXP(-O52)+P55*EXP(-O52))*0.5 -> 54.96173113
L54: =$C$72+H29+B4*(L47-0)*SQRT(J14) -> 0.442150785 | N54: =$C$72+H31+B4*(N44-2)*SQRT(J16) -> 0.2791181212 | P54: =$C$72+H33+B4*(P42-4)*SQRT(J18) -> 0.4044388788
H55: 5 | L55: =(M53*EXP(-L54)+M57*EXP(-L54))*0.5 -> 19.65568988 | N55: =(O53*EXP(-N54)+O57*EXP(-N54))*0.5 -> 43.94631807 | P55: =(2*A4*EXP(-P54))*0.5 -> 66.73511707
K56: =$C$72+H28+B4*(K49-0)*SQRT(J13) -> 0.191946388 | M56: =$C$72+H30+B4*(M45-2)*SQRT(J15) -> 0.3308670651 | O56: =$C$72+H32+B4*(O43-4)*SQRT(J17) -> 0.1140783355
G57: 4 | K57: =(L55*EXP(-K56)+L59*EXP(-K56))*0.5 -> 18.08418735 | M57: =(N55*EXP(-M56)+N59*EXP(-M56))*0.5 -> 32.98313344 | O57: =(P55*EXP(-O56)+P59*EXP(-O56))*0.5 -> 61.2291246
J58: =$C$72+H27+B4*(J51-0)*SQRT(J12) -> 0.2412252912 | L58: =$C$72+H29+B4*(L47-2)*SQRT(J14) -> 0.3947962203 | N58: =$C$72+H30+B4*(M45-4)*SQRT(J16) -> 0.3011608452 | P58: =$C$72+H33+B4*(P42-6)*SQRT(J18) -> 0.3492599668
F59: 3 | J59: =(K57*EXP(-J58)+K61*EXP(-J58))*0.5 -> 16.40611708 | L59: =(M57*EXP(-L58)+M61*EXP(-L58))*0.5 -> 24.16611396 | N59: =(O57*EXP(-N58)+O61*EXP(-N58))*0.5 -> 47.89025047 | P59: =(2*A4*EXP(-P58))*0.5 -> 70.52097753
I60: =$C$72+H26+B4*(I53-0)*SQRT(J11) -> 0.1074885457 | K60: =$C$72+H28+B4*(K49-2)*SQRT(J13) -> 0.1392769355 | M60: =$C$72+H30+B4*(M45-4)*SQRT(J15) -> 0.2906300958 | O60: =$C$72+H32+B4*(O43-6)*SQRT(J17) -> 0.06127142436
E61: 2 | I61: =(J59*EXP(-I60)+J63*EXP(-I60))*0.5 -> 17.62878618 | K61: =(L59*EXP(-K60)+L63*EXP(-K60))*0.5 -> 23.67947876 | M61: =(N59*EXP(-M60)+N63*EXP(-M60))*0.5 -> 38.7458432 | O61: =(P59*EXP(-O60)+P63*EXP(-O60))*0.5 -> 68.21120119
H62: =$C$72+H25+B4*(H55-0)*SQRT(J10) -> 0.1646262519 | J62: =$C$72+H27+B4*(J51-2)*SQRT(J12) -> 0.188601738 | L62: =$C$72+H29+B4*(L47-4)*SQRT(J14) -> 0.3474416557 | N62: =$C$72+H30+B4*(M45-6)*SQRT(J16) -> 0.2574136261 | P62: =$C$72+H33+B4*(P42-8)*SQRT(J18) -> 0.2940810548
D63: 1 | H63: =(I61*EXP(-H62)+I65*EXP(-H62))*0.5 -> 18.46576015 | J63: =(K61*EXP(-J62)+K65*EXP(-J62))*0.5 -> 22.85241783 | L63: =(M61*EXP(-L62)+M65*EXP(-L62))*0.5 -> 30.27027877 | N63: =(O61*EXP(-N62)+O65*EXP(-N62))*0.5 -> 55.73704389 | P63: =(2*A4*EXP(-P62))*0.5 -> 74.52160857
G64: =$C$72+H24+B4*(G57-0)*SQRT(J9) -> 0.1071138595 | I64: =$C$72+H26+B4*(I53-2)*SQRT(J11) -> 0.05987952162 | K64: =$C$72+H28+B4*(K49-4)*SQRT(J13) -> 0.08660748292 | M64: =$C$72+H30+B4*(M45-6)*SQRT(J15) -> 0.2503931265 | O64: =$C$72+H32+B4*(O43-8)*SQRT(J17) -> 0.008464513228
C65: 0 | G65: =(H63*EXP(-G64)+H67*EXP(-G64))*0.5 -> 20.88345298 | I65: =(J63*EXP(-I64)+J67*EXP(-I64))*0.5 -> 25.91171851 | K65: =(L63*EXP(-K64)+L67*EXP(-K64))*0.5 -> 31.51184944 | M65: =(N63*EXP(-M64)+N67*EXP(-M64))*0.5 -> 46.94578801 | O65: =(P63*EXP(-O64)+P67*EXP(-O64))*0.5 -> 75.98945759
F66: =$C$72+H23+B4*(F59-0)*SQRT(J8) -> 0.0876090277 | H66: =$C$72+H25+B4*(H55-2)*SQRT(J10) -> 0.1362169152 | J66: =$C$72+H27+B4*(J51-4)*SQRT(J12) -> 0.1359781847 | L66: =$C$72+H29+B4*(L47-6)*SQRT(J14) -> 0.300087091 | N66: =$C$72+H30+B4*(M45-8)*SQRT(J16) -> 0.213666407 | P66: =$C$72+H33+B4*(P42-10)*SQRT(J18) -> 0.2389021428
F67: =(G65*EXP(-F66)+G69*EXP(-F66))*0.5 -> 24.90715654 | H67: =(I65*EXP(-H66)+I69*EXP(-H66))*0.5 -> 28.02335312 | J67: =(K65*EXP(-J66)+K69*EXP(-J66))*0.5 -> 32.16897228 | L67: =(M65*EXP(-L66)+M69*EXP(-L66))*0.5 -> 38.45508391 | N67: =(O65*EXP(-N66)+O69*EXP(-N66))*0.5 -> 64.86953045 | P67: =(2*A4*EXP(-P66))*0.5 -> 78.74919404
A68: 14 | E68: =$C$72+H22+B4*(E61-0)*SQRT(J7) -> 0.07653808388 | G68: =$C$72+H24+B4*(G57-2)*SQRT(J8)*SQRT(J9) -> 0.07097982809 | I68: =$C$72+H26+B4*(I53-4)*SQRT(J11) -> 0.0122704975 | K68: =$C$72+H28+B4*(K49-6)*SQRT(J13) -> 0.03393803036 | M68: =$C$72+H30+B4*(M45-8)*SQRT(J15) -> 0.2101561572 | O68: =$C$72+H32+B4*(O43-10)*SQRT(J17) -> -0.0443423979
E69: =(F67*EXP(-E68)+F71*EXP(-E68))*0.5 -> 29.85774107 | G69: =(H67*EXP(-G68)+H71*EXP(-G68))*0.5 -> 33.49192179 | I69: =(J67*EXP(-I68)+J71*EXP(-I68))*0.5 -> 38.31390803 | K69: =(L67*EXP(-K68)+L71*EXP(-K68))*0.5 -> 42.19736071 | M69: =(N67*EXP(-M68)+N71*EXP(-M68))*0.5 -> 56.88112142 | O69: =(P67*EXP(-O68)+P71*EXP(-O68))*0.5 -> 84.65468375
D70: =$C$72+H21+B4*(D63-0)*SQRT(J6) -> 0.06979849472 | F70: =$C$72+H23+B4*(F59-2)*SQRT(J8) -> 0.07597629165 | H70: =$C$72+H25+B4*(H55-6)*SQRT(J10) -> 0.07939824183 | J70: =$C$72+H27+B4*(J51-6)*SQRT(J12) -> 0.08335463147 | L70: =$C$72+H29+B4*(L47-8)*SQRT(J14) -> 0.2527325263 | N70: =$C$72+H30+B4*(M45-10)*SQRT(J16) -> 0.1699191879 | P70: =$C$72+H33+B4*(P42-12)*SQRT(J18) -> 0.1837232308
D71: =(E69*EXP(-D70)+E73*EXP(-D70))*0.5 -> 36.14269139 | F71: =(G69*EXP(-F70)+G73*EXP(-F70))*0.5 -> 39.55829227 | H71: =(I69*EXP(-H70)+I73*EXP(-H70))*0.5 -> 43.88779319 | J71: =(K69*EXP(-J70)+K73*EXP(-J70))*0.5 -> 45.40489761 | L71: =(M69*EXP(-L70)+M73*EXP(-L70))*0.5 -> 48.85298513 | N71: =(O69*EXP(-N70)+O73*EXP(-N70))*0.5 -> 75.49837034 | P71: =(2*A4*EXP(-P70))*0.5 -> 83.21660899
C72: 0.06341238874 | E72: =$C$72+H22+B4*(E61-2)*SQRT(J7) -> 0.06490534784 | G72: =$C$72+H24+B4*(G57-4)*SQRT(J9) -> 0.06517143316 | I72: =$C$72+H26+B4*(I53-6)*SQRT(J11) -> -0.03533852663 | K72: =$C$72+H28+B4*(K49-8)*SQRT(J13) -> -0.0187314222 | M72: =$C$72+H30+B4*(M45-10)*SQRT(J15) -> 0.1699191879 | O72: =$C$72+H32+B4*(O43-12)*SQRT(J17) -> -0.09714930903
C73: =(D71*EXP(-C72)+D75*EXP(-C72))*0.5 -> 44.50933515 | E73: =(F71*EXP(-E72)+F75*EXP(-E72))*0.5 -> 47.6533029 | G73: =(H71*EXP(-G72)+H75*EXP(-G72))*0.5 -> 51.86988811 | I73: =(J71*EXP(-I72)+J75*EXP(-I72))*0.5 -> 56.71504789 | K73: =(L71*EXP(-K72)+L75*EXP(-K72))*0.5 -> 56.50627564 | M73: =(N71*EXP(-M72)+N75*EXP(-M72))*0.5 -> 68.91911098 | O73: =(P71*EXP(-O72)+P75*EXP(-O72))*0.5 -> 94.30802257
D74: =$C$72+H21-B4*SQRT(J6) -> 0.05679270044 | F74: =$C$72+H23+B4*(F59-4)*SQRT(J8) -> 0.06434355561 | H74: =$C$72+H25+B4*(H55-8)*SQRT(J10) -> 0.05098890515 | J74: =$C$72+H27+B4*(J51-8)*SQRT(J12) -> 0.03073107822 | L74: =$C$72+H29+B4*(L47-10)*SQRT(J14) -> 0.2053779617 | N74: =$C$72+H30+B4*(M45-12)*SQRT(J16) -> 0.1261719688 | P74: =$C$72+H33+B4*(P42-14)*SQRT(J18) -> 0.1285443188
D75: =(E73*EXP(-D74)+E77*EXP(-D74))*0.5 -> 58.70368719 | F75: =(G73*EXP(-F74)+G77*EXP(-F74))*0.5 -> 62.13938583 | H75: =(I73*EXP(-H74)+I77*EXP(-H74))*0.5 -> 66.83802564 | J75: =(K73*EXP(-J74)+K77*EXP(-J74))*0.5 -> 64.08674512 | L75: =(M73*EXP(-L74)+M77*EXP(-L74))*0.5 -> 62.06238327 | N75: =(O73*EXP(-N74)+O77*EXP(-N74))*0.5 -> 87.86874029 | P75: =(2*A4*EXP(-P74))*0.5 -> 87.93745887
E76: =$C$72+H21-2*B4*SQRT(J7) -> 0.05166286154 | G76: =$C$72+H24+B4*(G57-6)*SQRT(J9) -> 0.04420022001 | I76: =$C$72+H26+B4*(I53-8)*SQRT(J11) -> -0.08294755075 | K76: =$C$72+H28+B4*(K49-10)*SQRT(J13) -> -0.07140087476 | M76: =$C$72+H30+B4*(M45-12)*SQRT(J15) -> 0.1296822186 | O76: =$C$72+H32+B4*(O43-14)*SQRT(J17) -> -0.1499562202
E77: =(F75*EXP(-E76)+F79*EXP(-E76))*0.5 -> 76.61493276 | G77: =(H75*EXP(-G76)+H79*EXP(-G76))*0.5 -> 80.66829209 | I77: =(J75*EXP(-I76)+J79*EXP(-I76))*0.5 -> 83.95376045 | K77: =(L75*EXP(-K76)+L79*EXP(-K76))*0.5 -> 75.6672724 | M77: =(N75*EXP(-M76)+N79*EXP(-M76))*0.5 -> 83.50475062 | O77: =(P75*EXP(-O76)+P79*EXP(-O76))*0.5 -> 105.0621505
F78: =$C$72+H21-3*B4*SQRT(J8) -> 0.04584649351 | H78: =$C$72+H25+B4*(H55-10)*SQRT(J10) -> 0.02257956846 | J78: =$C$72+H27+B4*(J51-10)*SQRT(J12) -> -0.02189247503 | L78: =$C$72+H29+B4*(L47-12)*SQRT(J14) -> 0.158023397 | N78: =$C$72+H30+B4*(M45-14)*SQRT(J16) -> 0.08242474973 | P78: =$C$72+H33+B4*(P42-16)*SQRT(J18) -> 0.07336540681
F79: =(G77*EXP(-F78)+G81*EXP(-F78))*0.5 -> 99.21482965 | H79: =(I77*EXP(-H78)+I81*EXP(-H78))*0.5 -> 101.7896173 | J79: =(K77*EXP(-J78)+K81*EXP(-J78))*0.5 -> 90.45523977 | L79: =(M77*EXP(-L78)+M81*EXP(-L78))*0.5 -> 78.84348124 | N79: =(O77*EXP(-N78)+O81*EXP(-N78))*0.5 -> 102.2659891 | P79: =(2*A4*EXP(-P78))*0.5 -> 92.92612096
G80: =$C$72+H21-5*B4*SQRT(J9) -> 0.01086756472 | I80: =$C$72+H26+B4*(I53-10)*SQRT(J11) -> -0.1305565749 | K80: =$C$72+H28+B4*(K49-12)*SQRT(J13) -> -0.1240703273 | M80: =$C$72+H30+B4*(M45-14)*SQRT(J15) -> 0.08944524931 | O80: =$C$72+H32+B4*(O43-16)*SQRT(J17) -> -0.2027631313
G81: =(H79*EXP(-G80)+H83*EXP(-G80))*0.5 -> 127.0704348 | I81: =(J79*EXP(-I80)+J83*EXP(-I80))*0.5 -> 124.2744943 | K81: =(L79*EXP(-K80)+L83*EXP(-K80))*0.5 -> 101.3256678 | M81: =(N79*EXP(-M80)+N83*EXP(-M80))*0.5 -> 101.1772102 | O81: =(P79*EXP(-O80)+P83*EXP(-O80))*0.5 -> 117.0425925
H82: =$C$72+H21-6*B4*SQRT(J10) -> -0.02193241248 | J82: =$C$72+H27+B4*(J51-12)*SQRT(J12) -> -0.07451602827 | L82: =$C$72+H29+B4*(L47-14)*SQRT(J14) -> 0.1106688323 | N82: =$C$72+H30+B4*(M45-16)*SQRT(J16) -> 0.03867753064 | P82: =$C$72+H33+B4*(P42-18)*SQRT(J18) -> 0.01818649482
H83: =(I81*EXP(-H82)+I85*EXP(-H82))*0.5 -> 155.1282068 | J83: =(K81*EXP(-J82)+K85*EXP(-J82))*0.5 -> 127.6730529 | L83: =(M81*EXP(-L82)+M85*EXP(-L82))*0.5 -> 100.1620339 | N83: =(O81*EXP(-N82)+O85*EXP(-N82))*0.5 -> 119.0222199 | P83: =(2*A4*EXP(-P82))*0.5 -> 98.19778815
I84: =$C$72+H21-7*B4*SQRT(J11) -> -0.1033359869 | K84: =$C$72+H28+B4*(K49-14)*SQRT(J13) -> -0.1767397799 | M84: =$C$72+H30+B4*(M45-16)*SQRT(J15) -> 0.04920828001 | O84: =$C$72+H32+B4*(O43-18)*SQRT(J17) -> -0.2555700424
I85: =(J83*EXP(-I84)+J87*EXP(-I84))*0.5 -> 179.2513266 | K85: =(L83*EXP(-K84)+L87*EXP(-K84))*0.5 -> 135.6846973 | M85: =(N83*EXP(-M84)+N87*EXP(-M84))*0.5 -> 122.5897662 | O85: =(P83*EXP(-O84)+P87*EXP(-O84))*0.5 -> 130.3891878
J86: =$C$72+H21-8*B4*SQRT(J12) -> -0.1471986154 | L86: =$C$72+H29+B4*(L47-16)*SQRT(J14) -> 0.06331426767 | N86: =$C$72+H30+B4*(M45-18)*SQRT(J16) -> -0.005069688446 | P86: =$C$72+H33+B4*(P42-20)*SQRT(J18) -> -0.03699241717
J87: =(K85*EXP(-J86)+K89*EXP(-J86))*0.5 -> 195.6332156 | L87: =(M85*EXP(-L86)+M89*EXP(-L86))*0.5 -> 127.2449272 | N87: =(O85*EXP(-N86)+O89*EXP(-N86))*0.5 -> 138.5239507 | P87: =(2*A4*EXP(-P86))*0.5 -> 103.7685152
K88: =$C$72+H21-9*B4*SQRT(J13) -> -0.1737169389 | M88: =$C$72+H30+B4*(M45-18)*SQRT(J15) -> 0.008971310704 | O88: =$C$72+H32+B4*(O43-20)*SQRT(J17) -> -0.3083769535
K89: =(L87*EXP(-K88)+L91*EXP(-K88))*0.5 -> 202.0261751 | M89: =(N87*EXP(-M88)+N91*EXP(-M88))*0.5 -> 148.533951 | O89: =(P87*EXP(-O88)+P91*EXP(-O88))*0.5 -> 145.2577214
L90: =$C$72+H21-10*B4*SQRT(J14) -> -0.1734772257 | N90: =$C$72+H30+B4*(M45-20)*SQRT(J16) -> -0.04881690754 | P90: =$C$72+H33+B4*(P42-22)*SQRT(J18) -> -0.09217132917
L91: =(M89*EXP(-L90)+M93*EXP(-L90))*0.5 -> 212.3751289 | N91: =(O89*EXP(-N90)+O93*EXP(-N90))*0.5 -> 161.2210302 | P91: =(2*A4*EXP(-P90))*0.5 -> 109.6552677
M92: =$C$72+H21-11*B4*SQRT(J15) -> -0.1580077336 | O92: =$C$72+H32+B4*(O43-22)*SQRT(J17) -> -0.3611838647
M93: =(N91*EXP(-M92)+N95*EXP(-M92))*0.5 -> 208.5690083 | O93: =(P91*EXP(-O92)+P95*EXP(-O92))*0.5 -> 161.8217428
N94: =$C$72+H21-12*B4*SQRT(J16) -> -0.199187717 | P94: =$C$72+H33+B4*(P42-24)*SQRT(J18) -> -0.1473502412
N95: =(O93*EXP(-N94)+O97*EXP(-N94))*0.5 -> 194.9494198 | P95: =(2*A4*EXP(-P94))*0.5 -> 115.8759737
O96: =$C$72+H21-13*B4*SQRT(J17) -> -0.2799493248
O97: =(P95*EXP(-O96)+P99*EXP(-O96))*0.5 -> 157.6598318
P98: =$C$72+H33+B4*(P42-26)*SQRT(J18) -> -0.2025291532
P99: =(2*A4*EXP(-P98))*0.5 -> 122.4495783

Sheet Bootstrapping the spot rates
C1: Bootstrapping the Treasury spot rate curve
C4: Bond Price | E4: 99.8 | F4: 99.634 | G4: 99.374 | H4: 98.704 | J4: 98.681 | M4: 96.083 | S4: 106.687 | AA4: 108.318 | AH4: 119.024 | AL4: 102.467 | AO4: 93.98 | AR4: 94.53 | AV4: 114.346 | AX4: 107.961
C5: Time to Maturity | E5: =('[1]Swedish T-Bills and Bonds'!E5-'[1]Nelson&Siegel Parametrization'!$C$3)/365 -> 0.02465753425 | F5: =('[1]Swedish T-Bills and Bonds'!E6-'[1]Nelson&Siegel Parametrization'!$C$3)/365 -> 0.1205479452 | G5: =('[1]Swedish T-Bills and Bonds'!E7-'[1]Nelson&Siegel Parametrization'!$C$3)/365 -> 0.197260274 | H5: =('[1]Swedish T-Bills and Bonds'!E8-'[1]Nelson&Siegel Parametrization'!$C$3)/365 -> 0.2739726027 | J5: =('[1]Swedish T-Bills and Bonds'!E9-'[1]Nelson&Siegel Parametrization'!$C$3)/365 -> 0.5232876712 | M5: =('[1]Swedish T-Bills and Bonds'!E10-'[1]Nelson&Siegel Parametrization'!$C$3)/365 -> 0.9808219178 | S5: =('[1]Swedish T-Bills and Bonds'!E11-'[1]Nelson&Siegel Parametrization'!$C$3)/365 -> 2.265753425 | AA5: =('[1]Swedish T-Bills and Bonds'!E12-'[1]Nelson&Siegel Parametrization'!$C$3)/365 -> 3.835616438 | AH5: =('[1]Swedish T-Bills and Bonds'!E13-'[1]Nelson&Siegel Parametrization'!$C$3)/365 -> 5.408219178 | AL5: =('[1]Swedish T-Bills and Bonds'!E14-'[1]Nelson&Siegel Parametrization'!$C$3)/365 -> 6.679452055 | AO5: 7.68 | AR5: =('[1]Swedish T-Bills and Bonds'!E16-'[1]Nelson&Siegel Parametrization'!$C$3)/365 -> 8.682191781 | AV5: =('[1]Swedish T-Bills and Bonds'!E17-'[1]Nelson&Siegel Parametrization'!$C$3)/365 -> 10.2630137 | AX5: =('[1]Swedish T-Bills and Bonds'!E18-'[1]Nelson&Siegel Parametrization'!$C$3)/365 -> 11.9890411
C6: Yield | E6: 0.0274 | F6: 0.02756 | G6: 0.02765 | H6: 0.0311 | J6: 0.02394 | M6: 0.03949 | S6: 0.03641 | AA6: 0.03242 | AH6: 0.02917 | AL6: 0.04098 | AO6: 0.0391 | AR6: 0.04493 | AV6: 0.02648 | AX6: 0.04181
A7: Today´s date | B7: 2008-12-08 | C7: Coupon Rate | E7: 0 | F7: 0 | G7: 0 | H7: 0 | J7: 0 | M7: 4 | S7: 5.25 | AA7: 5.5 | AH7: 6.75 | AL7: 4.5 | AO7: 3 | AR7: 3.75 | AV7: 4.25 | AX7: 5
C8: Spot Rates
C11: PV of Cash Flows
A12: Dates | B12: Yield (%) | C12: Time to Maturity | E12: 0.02465753425 | F12: 0.1205479452 | G12: 0.197260274 | H12: 0.2739726027 | I12: 0.41 | J12: 0.5232876712 | K12: 0.68 | L12: 0.83 | M12: 0.9808219178 | N12: 1.26 | O12: 1.41 | P12: 1.68 | Q12: 1.83 | R12: 1.98 | S12: 2.265753425 | T12: 2.41 | U12: 2.68 | V12: 2.83 | W12: 2.98 | X12: 3.26 | Y12: 3.41 | Z12: 3.68 | AA12: 3.84 | AB12: 3.98 | AC12: 4.26 | AD12: 4.41 | AE12: 4.68 | AF12: 4.98 | AG12: 5.26 | AH12: 5.41 | AI12: 5.68 | AJ12: 5.98 | AK12: 6.26 | AL12: 6.679452055 | AM12: 6.98 | AN12: 7.26 | AO12: 7.68 | AP12: 7.99 | AQ12: 8.26 | AR12: 8.682191781 | AS12: 8.99 | AT12: 9.26 | AU12: 9.99 | AV12: 10.2630137 | AW12: 10.99 | AX12: 11.9890411 | AZ12: Time
A13: 2008-12-17 | B13: 2.71 | C13: Years | D13: 0.02 | E13: =E4*(1+E6)^E5 -> 99.86654148 | AY13: 0.02 | AZ13: Years
D14: Spot | E14: 2.74 | AY14: Spot
A15: 2009-01-21 | B15: 2.756 | C15: Years | D15: =(A15-$B$7)/365 -> 0.1205479452 | F15: =F4*(1+F6)^F5 -> 99.96107058 | AY15: 0.1205479452 | AZ15: Years
D16: Spot | F16: 2.756 | AY16: Spot
A17: 2009-02-18 | B17: 2.765 | C17: Years | D17: =(A17-$B$7)/365 -> 0.197260274 | G17: =G4*(1+G6)^G5 -> 99.91009318 | AY17: 0.197260274 | AZ17: Years
D18: Spot | G18: 2.765 | AY18: Spot
A19: 2009-03-18 | B19: 3.11 | C19: Years | D19: =(A19-$B$7)/365 -> 0.2739726027 | H19: =H4*(1+H6)^H5 -> 99.53568374 | S19: 5.25 | AV19: 4.25 | AY19: 0.2739726027 | AZ19: Years
D20: Spot | H20: 3.11 | S20: 3.11 | AV20: 3.11 | AY20: Spot
A21: 2009-05-05 | B21: 2.96 | C21: Years | D21: =(A21-$B$7)/365 -> 0.4054794521 | AH21: 6.75 | AY21: 0.4054794521 | AZ21: Years
D22: Spot | I22: 2.96 | AH22: 2.96 | AY22: Spot
A23: 2009-06-17 | B23: 2.394 | C23: Years | D23: =(A23-$B$7)/365 -> 0.5232876712 | J23: =J4*(1+J6)^J5 -> 99.9102546 | AY23: 0.5232876712 | AZ23: Years
D24: Spot | J24: 2.394 | AY24: Spot
A25: 2009-08-12 | B25: 3 | C25: Years | D25: =(A25-$B$7)/365 -> 0.6767123288 | AL25: 4.5 | AO25: 3 | AR25: 3.75 | AY25: 0.6767123288 | AZ25: Years
D26: Spot | K26: 3 | AL26: 3 | AO26: 3 | AR26: 3 | AY26: Spot
A27: 2009-10-08 | B27: 3.03 | C27: Years | D27: =(A27-$B$7)/365 -> 0.8328767123 | AA27: 5.5 | AY27: 0.8328767123 | AZ27: Years
D28: Spot | L28: 3.03 | AA28: 3.03 | AY28: Spot
A29: 2009-12-01 | B29: 3.949 | C29: Years | D29: =(A29-$B$7)/365 -> 0.9808219178 | M29: 104 | AX29: 5 | AY29: 0.9808219178 | AZ29: Years
D30: Spot | M30: 3.949 | AX30: 3.949 | AY30: Spot
A31: 2010-03-12 | B31: 3.1 | C31: Years | D31: =(A31-$B$7)/365 -> 1.257534247 | S31: 5.25 | AV31: 4.25 | AY31: 1.257534247 | AZ31: Years
D32: Spot | N32: 3.1 | S32: 3.1 | AV32: 3.1 | AY32: Spot
A33: 2010-05-05 | B33: 3.12 | C33: Years | D33: =(A33-$B$7)/365 -> 1.405479452 | AH33: 6.75 | AY33: 1.405479452 | AZ33: Years
D34: Spot | O34: 3.12 | AH34: 3.12 | AY34: Spot
A35: 2010-08-12 | B35: 3.16 | C35: Years | D35: =(A35-$B$7)/365 -> 1.676712329 | AL35: 4.5 | AO35: 3 | AR35: 3.75 | AY35: 1.676712329 | AZ35: Years
D36: Spot | P36: 3.16 | AL36: 3.16 | AO36: 3.16 | AR36: 3.16 | AY36: Spot
A37: 2010-10-08 | B37: 3.19 | C37: Years | D37: =(A37-$B$7)/365 -> 1.832876712 | AA37: 5.5 | AY37: 1.832876712 | AZ37: Years
D38: Spot | Q38: 3.19 | AA38: 3.19 | AY38: Spot
A39: 2010-12-01 | B39: 3.21 | C39: Years | D39: =(A39-$B$7)/365 -> 1.980821918 | AX39: 5 | AY39: 1.980821918 | AZ39: Years
D40: Spot | R40: 3.21 | AX40: 3.21 | AY40: Spot
A41: 2011-03-12 | B41: 3.641 | C41: Years | D41: =(A41-$B$7)/365 -> 2.257534247 | S41: 105.25 | AV41: 4.25 | AY41: 2.257534247 | AZ41: Years
D42: Spot | S42: 3.3931 | AV42: 3.3931 | AY42: Spot
A43: 2011-05-05 | B43: 3.27 | C43: Years | D43: =(A43-$B$7)/365 -> 2.405479452 | AH43: 6.75 | AY43: 2.405479452 | AZ43: Years
D44: Spot | T44: 3.27 | AH44: 3.27 | AY44: Spot
A45: 2011-08-12 | B45: 3.31 | C45: Years | D45: =(A45-$B$7)/365 -> 2.676712329 | AL45: 4.5 | AO45: 3 | AR45: 3.75 | AY45: 2.676712329 | AZ45: Years
D46: Spot | U46: 3.31 | AL46: 3.31 | AO46: 3.31 | AR46: 3.31 | AY46: Spot
A47: 2011-10-08 | B47: 3.33 | C47: Years | D47: =(A47-$B$7)/365 -> 2.832876712 | AA47: 5.5 | AY47: 2.832876712 | AZ47: Years
D48: Spot | V48: 3.33 | AA48: 3.33 | AY48: Spot
A49: 2011-12-01 | B49: 3.35 | C49: Years | D49: =(A49-$B$7)/365 -> 2.980821918 | AX49: 5 | AY49: 2.980821918 | AZ49: Years
D50: Spot | W50: 3.35 | AX50: 3.35 | AY50: Spot
A51: 2012-03-12 | B51: 3.39 | C51: Years | D51: =(A51-$B$7)/365 -> 3.260273973 | AV51: 4.25 | AY51: 3.260273973 | AZ51: Years
D52: Spot | X52: 3.39 | AV52: 3.39 | AY52: Spot
A53: 2012-05-05 | B53: 3.4 | C53: Years | D53: =(A53-$B$7)/365 -> 3.408219178 | AH53: 6.75 | AY53: 3.408219178 | AZ53: Years
D54: Spot | Y54: 3.4 | AH54: 3.4 | AY54: Spot
A55: 2012-08-12 | B55: 3.44 | C55: Years | D55: =(A55-$B$7)/365 -> 3.679452055 | AL55: 4.5 | AO55: 3 | AR55: 3.75 | AY55: 3.679452055 | AZ55: Years
D56: Spot | Z56: 3.44 | AL56: 3.44 | AO56: 3.44 | AR56: 3.44 | AY56: Spot
A57: 2012-10-08 | B57: 3.24 | C57: Years | D57: =(A57-$B$7)/365 -> 3.835616438 | AA57: 105.5 | AY57: 3.835616438 | AZ57: Years
D58: Spot | AA58: 3.411 | AY58: Spot
A59: 2012-12-01 | B59: 3.47 | C59: Years | D59: =(A59-$B$7)/365 -> 3.983561644 | AX59: 5 | AY59: 3.983561644 | AZ59: Years
D60: Spot | AB60: 3.47 | AX60: 3.47 | AY60: Spot
A61: 2013-03-12 | B61: 3.5 | C61: Years | D61: =(A61-$B$7)/365 -> 4.260273973 | AV61: 4.25 | AY61: 4.260273973 | AZ61: Years
D62: Spot | AC62: 3.5 | AV62: 3.5 | AY62: Spot
A63: 2013-05-05 | B63: 3.52 | C63: Years | D63: =(A63-$B$7)/365 -> 4.408219178 | AH63: 6.75 | AY63: 4.408219178 | AZ63: Years
D64: Spot | AD64: 3.52 | AH64: 3.52 | AY64: Spot
A65: 2013-08-12 | B65: 3.55 | C65: Years | D65: =(A65-$B$7)/365 -> 4.679452055 | AL65: 4.5 | AO65: 3 | AR65: 3.75 | AY65: 4.679452055 | AZ65: Years
D66: Spot | AE66: 3.55 | AL66: 3.55 | AO66: 3.55 | AR66: 3.55 | AY66: Spot
A67: 2013-12-01 | B67: 3.58 | C67: Years | D67: =(A67-$B$7)/365 -> 4.983561644 | AX67: 5 | AY67: 4.983561644 | AZ67: Years
D68: Spot | AF68: 3.58 | AX68: 3.58 | AY68: Spot
A69: 2014-03-12 | B69: 3.6 | C69: Years | D69: =(A69-$B$7)/365 -> 5.260273973 | AV69: 4.25 | AY69: 5.260273973 | AZ69: Years
D70: Spot | AG70: 3.6 | AV70: 3.6 | AY70: Spot
A71: 2014-05-05 | B71: 2.917 | C71: Years | D71: =(A71-$B$7)/365 -> 5.408219178 | AH71: 106.75 | AY71: 5.408219178 | AZ71: Years
D72: Spot | AH72: 3.67 | AY72: Spot
A73: 2014-08-12 | B73: 3.64 | C73: Years | D73: =(A73-$B$7)/365 -> 5.679452055 | AL73: 4.5 | AO73: 3 | AR73: 3.75 | AY73: 5.679452055 | AZ73: Years
D74: Spot | AI74: 3.64 | AL74: 3.64 | AO74: 3.64 | AR74: 3.64 | AY74: Spot
A75: 2014-12-01 | B75: 3.67 | C75: Years | D75: =(A75-$B$7)/365 -> 5.983561644 | AX75: 5 | AY75: 5.983561644 | AZ75: Years
D76: Spot | AJ76: 3.67 | AX76: 3.67 | AY76: Spot
A77: 2015-03-12 | B77: 3.69 | C77: Years | D77: =(A77-$B$7)/365 -> 6.260273973 | AV77: 4.25 | AY77: 6.260273973 | AZ77: Years
D78: Spot | AK78: 3.69 | AV78: 3.69 | AY78: Spot
A79: 2015-08-12 | B79: 4.098 | C79: Years | D79: =(A79-$B$7)/365 -> 6.679452055 | AL79: 104.5 | AO79: 3 | AR79: 3.75 | AY79: 6.679452055 | AZ79: Years
D80: Spot | AL80: 4.43 | AO80: 4.43 | AR80: 4.43 | AY80: Spot
A81: 2015-12-01 | B81: 3.73 | C81: Years | D81: =(A81-$B$7)/365 -> 6.983561644 | AX81: 5 | AY81: 6.983561644 | AZ81: Years
D82: Spot | AM82: 3.73 | AX82: 3.73 | AY82: Spot
A83: 2016-03-12 | B83: 3.75 | C83: Years | D83: =(A83-$B$7)/365 -> 7.263013699 | AV83: 4.25 | AY83: 7.263013699 | AZ83: Years
D84: Spot | AN84: 3.75 | AV84: 3.75 | AY84: Spot
A85: 2016-07-12 | B85: 3.91 | C85: Years | D85: 7.68 | AO85: 103 | AR85: 3.75 | AY85: 7.68 | AZ85: Years
D86: Spot | AO86: 4.12 | AR86: 4.12 | AY86: Spot
A87: 2016-12-01 | B87: 3.78 | C87: Years | D87: =(A87-$B$7)/365 -> 7.98630137 | AX87: 5 | AY87: 7.98630137 | AZ87: Years
D88: Spot | AP88: 3.78 | AX88: 3.78 | AY88: Spot
A89: 2017-03-12 | B89: 3.79 | C89: Years | D89: =(A89-$B$7)/365 -> 8.263013699 | AV89: 4.25 | AY89: 8.263013699 | AZ89: Years
D90: Spot | AQ90: 3.79 | AV90: 3.79 | AY90: Spot
A91: 2017-08-12 | B91: 4.493 | C91: Years | D91: =(A91-$B$7)/365 -> 8.682191781 | AR91: 103.75 | AY91: 8.682191781 | AZ91: Years
D92: Spot | AR92: 4.86 | AY92: Spot
A93: 2017-12-01 | B93: 3.8 | C93: Years | D93: =(A93-$B$7)/365 -> 8.98630137 | AX93: 5 | AY93: 8.98630137 | AZ93: Years
D94: Spot | AS94: 3.8 | AX94: 3.8 | AY94: Spot
A95: 2018-03-12 | B95: 3.81 | C95: Years | D95: =(A95-$B$7)/365 -> 9.263013699 | AV95: 4.25 | AY95: 9.263013699 | AZ95: Years
D96: Spot | AT96: 3.81 | AV96: 3.81 | AY96: Spot
A97: 2018-12-01 | B97: 3.81 | C97: Years | D97: =(A97-$B$7)/365 -> 9.98630137 | AX97: 5 | AY97: 9.98630137 | AZ97: Years
D98: Spot | AU98: 3.81 | AX98: 3.81 | AY98: Spot
A99: 2019-03-12 | B99: 2.648 | C99: Years | D99: =(A99-$B$7)/365 -> 10.2630137 | AV99: 104.25 | AY99: 10.2630137 | AZ99: Years
D100: Spot | AV100: 2.827 | AY100: Spot
A101: 2019-12-01 | B101: 3.78 | C101: Years | D101: =(A101-$B$7)/365 -> 10.98630137 | AX101: 5 | AY101: 10.98630137 | AZ101: Years
D102: Spot | AW102: 3.78 | AX102: 3.78 | AY102: Spot
A103: 2020-12-01 | B103: 4.181 | C103: Years | D103: =(A103-$B$7)/365 -> 11.9890411 | AX103: 105 | AY103: 11.9890411 | AZ103: Years
D104: Spot | AX104: 4.3 | AY104: Spot
A108: RESULTS | C108: Maturity | D108: T in Years | E108: Yield | F108: Coupon | G108: Price | H108: Spot Rate | I108: Zero Coupon Price | J108: Bond Yield
B109: Treasure bills | C109: 2008-12-17 | D109: 0.02465753425 | E109: 3.274 | F109: 0 | G109: 99.8 | H109: =E14 -> 2.74 | I109: 99.8 | J109: =LN(99.8665/I109)/D109 -> 0.02701449211 | K109: 2008-12-17
C110: 2009-01-21 | D110: 0.1205479452 | E110: 2.756 | F110: 0 | G110: 99.634 | H110: =F16 -> 2.756 | I110: 99.634 | J110: =LN(99.961/I110)/D110 -> 0.02718120257 | K110: 2009-01-21
C111: 2009-02-18 | D111: 0.197260274 | E111: 2.765 | F111: 0 | G111: 99.374 | H111: =G18 -> 2.765 | I111: 99.374 | J111: =LN(99.91/I111)/D111 -> 0.02726991404 | K111: 2009-02-18
C112: 2009-03-18 | D112: 0.2739726027 | E112: 3.11 | F112: 0 | G112: 98.704 | H112: =H20 -> 3.11 | I112: 98.704 | J112: =LN(99.5357/I112)/D112 -> 0.0306267898 | K112: 2009-03-18
C113: 2009-06-17 | D113: 0.5232876712 | E113: 2.394 | F113: 0 | G113: 98.681 | H113: =J24 -> 2.394 | I113: 98.681 | J113: =LN(101/I113)/D113 -> 0.04438876118 | K113: 2009-06-17
B114: Bonds | C114: 2009-12-01 | D114: 0.9808219178 | E114: 3.949 | F114: 4 | G114: 96.083 | H114: =M30 -> 3.949 | I114: 96.083 | J114: =LN(100.38/I114)/D114 -> 0.04460604129 | K114: 2009-12-01
C115: 2011-03-15 | D115: 2.265753425 | E115: 3.641 | F115: 5.25 | G115: 106.687 | H115: =S42 -> 3.3931 | I115: 88.68 | J115: =LN(99/I115)/D115 -> 0.0485866927 | K115: 2011-03-15
C116: 2012-10-08 | D116: 3.835616438 | E116: 3.242 | F116: 5.5 | G116: 108.318 | H116: =AA58 -> 3.411 | I116: 83.33 | J116: =LN(100.5/I116)/D116 -> 0.04884458655 | K116: 2012-10-08
C117: 2014-05-05 | D117: 5.408219178 | E117: 2.917 | F117: 6.75 | G117: 119.024 | H117: =AH72 -> 3.67 | I117: 77.06 | J117: =LN(100.6/I117)/D117 -> 0.04928940742 | K117: 2014-05-05
C118: 2015-08-12 | D118: 6.679452055 | E118: 4.098 | F118: 4.5 | G118: 102.467 | H118: =AL80 -> 4.43 | I118: 71.6 | J118: =LN(99.8665/I118)/D118 -> 0.04981534674 | K118: 2015-08-12
C119: 2016-07-12 | D119: 7.597260274 | E119: 3.91 | F119: 3 | G119: 93.98 | H119: =AO86 -> 4.12 | I119: 71.21 | J119: =LN(104/I119)/D119 -> 0.04985450379 | K119: 2016-07-12
C120: 2017-08-12 | D120: 8.682191781 | E120: 4.493 | F120: 3.75 | G120: 94.53 | H120: =AR92 -> 4.86 | I120: 63.86 | J120: =LN(99.8665/I120)/D120 -> 0.05150094793 | K120: 2017-08-12
C121: 2019-03-12 | D121: 10.2630137 | E121: 2.648 | F121: 4.25 | G121: 114.346 | H121: =AV100 -> 2.827 | I121: 72.01 | J121: =LN(102/I121)/D118 -> 0.0521252061 | K121: 2019-03-12
C122: 2020-12-01 | D122: 11.9890411 | E122: 4.181 | F122: 5 | G122: 107.961 | H122: =AX104 -> 4.3 | I122: 57.49 | J122: =LN(107.5/I122)/D122 -> 0.05220432751 | K122: 2020-12-01

Sheet Nelson&Siegel Parametrization
A1: Non Linear Interpolation with solver. Fitting of Yield curve using Nelson Siegel parameterrization
B3: Today´s date | C3: 2008-12-08
A5: Maturity Dates | B5: Coupon Dates | C5: Yield (%) | D5: Tau | E5: Nilson&Siegel | F5: Squared residual | Q5: Paremeters for Nelson Siege Model
A6: 2008-12-17 | B6: 2008-12-17 | C6: 2.71 | D6: =(B6-$C$3)/365 -> 0.02465753425 | E6: =Beta0+Beta1*EXP(-D6/Theta)+Beta2*(D6/Theta)*EXP(-D6/Theta) -> 2.888175029 | F6: =(C6-E6)^2 -> 0.03174634089
A7: 2009-01-21 | B7: 2009-01-21 | C7: 2.756 | D7: 0.1205479452 | E7: 2.905295314 | F7: 0.0222890909 | Q7: Beta0 | R7: -44.65337062
A8: 2009-02-18 | B8: 2009-02-18 | C8: 2.765 | D8: 0.197260274 | E8: 2.918892861 | F8: 0.02368301275 | Q8: Beta1 | R8: 47.53712121
A9: 2009-03-18 | B9: 2009-03-18 | C9: 3.11 | D9: 0.2739726027 | E9: 2.932402331 | F9: 0.0315409321 | Q9: Beta2 | R9: 39.31131948
B10: 2009-05-05 | C10: =E10 -> 2.955355546 | D10: 0.4054794521 | E10: 2.955355546 | F10: 0 | Q10: Theta | R10: -45.79597434
A11: 2009-06-16 | B11: 2009-06-17 | C11: 2.394 | D11: 0.5232876712 | E11: 2.975695786 | F11: 0.3383699871
B12: 2009-08-12 | C12: =E12 -> 3.001868766 | D12: 0.6767123288 | E12: 3.001868766 | F12: 0
B13: 2009-10-08 | C13: =E13 -> 3.028138679 | D13: 0.8328767123 | E13: 3.028138679 | F13: 0
A14: 2009-11-30 | B14: 2009-12-01 | C14: 3.949 | D14: 0.9808219178 | E14: 3.052678652 | F14: 0.8033919582
B15: 2010-03-12 | C15: =E15 -> 3.097661778 | D15: 1.257534247 | E15: 3.097661778 | F15: 0
B16: 2010-05-05 | C16: =E16 -> 3.121218009 | D16: 1.405479452 | E16: 3.121218009 | F16: 0
B17: 2010-08-12 | C17: =E17 -> 3.163500061 | D17: 1.676712329 | E17: 3.163500061 | F17: 0
B18: 2010-10-08 | C18: =E18 -> 3.187308423 | D18: 1.832876712 | E18: 3.187308423 | F18: 0
B19: 2010-12-01 | C19: =E19 -> 3.209499149 | D19: 1.980821918 | E19: 3.209499149 | F19: 0
A20: 2011-03-11 | B20: 2011-03-12 | C20: 3.641 | D20: 2.257534247 | E20: 3.250042964 | F20: 0.152847404
B21: 2011-05-05 | C21: =E21 -> 3.271201298 | D21: 2.405479452 | E21: 3.271201298 | F21: 0
B22: 2011-08-12 | C22: 3.309042699 | D22: 2.676712329 | E22: 3.309042699 | F22: 0
B23: 2011-10-08 | C23: 3.330268023 | D23: 2.832876712 | E23: 3.330268023 | F23: 0
B24: 2011-12-01 | C24: 3.349993818 | D24: 2.980821918 | E24: 3.349993818 | F24: 0
B25: 2012-03-12 | C25: 3.386229095 | D25: 3.260273973 | E25: 3.386229095 | F25: 0
B26: 2012-05-05 | C26: 3.404865124 | D26: 3.408219178 | E26: 3.404865124 | F26: 0
B27: 2012-08-12 | C27: 3.438036138 | D27: 3.679452055 | E27: 3.438036138 | F27: 0
A28: 2012-10-07 | B28: 2012-10-08 | C28: 3.242 | D28: 3.835616438 | E28: 3.456545176 | F28: 0.0460296326
B29: 2012-12-01 | C29: =E29 -> 3.473679145 | D29: 3.983561644 | E29: 3.473679145 | F29: 0
B30: 2013-03-12 | C30: 3.504669401 | D30: 4.260273973 | E30: 3.504669401 | F30: 0
B31: 2013-05-05 | C31: 3.520668478 | D31: 4.408219178 | E31: 3.520668478 | F31: 0
B32: 2013-08-12 | C32: 3.54895747 | D32: 4.679452055 | E32: 3.54895747 | F32: 0
B33: 2013-12-01 | C33: 3.579052837 | D33: 4.983561644 | E33: 3.579052837 | F33: 0
B34: 2014-03-12 | C34: 3.60492675 | D34: 5.260273973 | E34: 3.60492675 | F34: 0
A35: 2014-05-04 | B35: 2014-05-05 | C35: 2.917 | D35: 5.408219178 | E35: 3.618163364 | F35: 0.4916300633
B36: 2014-08-12 | C36: =E36 -> 3.641338617 | D36: 5.679452055 | E36: 3.641338617 | F36: 0
B37: 2014-12-01 | C37: =E37 -> 3.665624033 | D37: 5.983561644 | E37: 3.665624033 | F37: 0
B38: 2015-03-12 | C38: =E38 -> 3.6861406 | D38: 6.260273973 | E38: 3.6861406 | F38: 0
A39: 2015-08-11 | B39: 2015-08-12 | C39: 4.098 | D39: 6.679452055 | E39: 3.714306929 | F39: 0.1472203726
B40: 2015-12-01 | C40: =E40 -> 3.732511205 | D40: 6.983561644 | E40: 3.732511205 | F40: 0
B41: 2016-03-12 | C41: =E41 -> 3.747560953 | D41: 7.263013699 | E41: 3.747560953 | F41: 0
A42: 2016-07-11 | B42: 2016-07-12 | C42: 3.91 | D42: 7.597260274 | E42: 3.763421119 | F42: 0.02148536824
B43: 2016-12-01 | C43: =E43 -> 3.778900747 | D43: 7.98630137 | E43: 3.778900747 | F43: 0
B44: 2017-03-12 | C44: =E44 -> 3.787930361 | D44: 8.263013699 | E44: 3.787930361 | F44: 0
A45: 2017-08-11 | B45: 2017-08-12 | C45: 4.493 | D45: 8.682191781 | E45: 3.798422089 | F45: 0.4824384746
B46: 2017-12-01 | C46: =E46 -> 3.803595044 | D46: 8.98630137 | E46: 3.803595044 | F46: 0
B47: 2018-03-12 | C47: =E47 -> 3.806493707 | D47: 9.263013699 | E47: 3.806493707 | F47: 0
B48: 2018-12-01 | C48: =E48 -> 3.805775915 | D48: 9.98630137 | E48: 3.805775915 | F48: 0
A49: 2019-03-11 | B49: 2019-03-12 | C49: 2.648 | D49: 10.2630137 | E49: 3.802268532 | F49: 1.332335844
B50: 2019-12-01 | C50: =E50 -> 3.784437306 | D50: 10.98630137 | E50: 3.784437306 | F50: 0
A51: 2020-11-30 | B51: 2020-12-01 | C51: 4.181 | D51: 11.9890411 | E51: 3.738379259 | F51: 0.1959131205
F52: =SUM(F6:F51) -> 4.120921602

Sheet Data
C2: SIMPLE RESULT: 12/01/1998- 12/02/2008
C3: Swedish Treasury Bills | G3: Swedish Government Bonds
B4: Date | C4: 1 Month | D4: 3 Months | E4: 6 Months | F4: 12 Months | G4: 2 Years | H4: 5 Years | I4: 7 Years | J4: 10 Years
B5: 1998-12-01 | C5: 3.63 | D5: 3.58 | E5: 3.62 | F5: 3.65 | G5: 3.685 | H5: 3.935 | I5: 4.04 | J5: 4.31
B6: 1998-12-02 | C6: 3.61 | D6: 3.57 | E6: 3.6 | F6: 3.64 | G6: 3.66 | H6: 3.905 | I6: 4.02 | J6: 4.29
B7: 1998-12-03 | C7: 3.53 | D7: 3.49 | E7: 3.51 | F7: 3.52 | G7: 3.575 | H7: 3.865 | I7: 4.005 | J7: 4.315
B8: 1998-12-04 | C8: 3.51 | D8: 3.48 | E8: 3.51 | F8: 3.52 | G8: 3.585 | H8: 3.895 | I8: 4.035 | J8: 4.35
B9: 1998-12-07 | C9: 3.52 | D9: 3.5 | E9: 3.53 | F9: 3.54 | G9: 3.595 | H9: 3.905 | I9: 4.04 | J9: 4.35
B10: 1998-12-08 | C10: 3.43 | D10: 3.49 | E10: 3.54 | F10: 3.54 | G10: 3.6 | H10: 3.935 | I10: 4.07 | J10: 4.355
B11: 1998-12-09 | C11: 3.43 | D11: 3.48 | E11: 3.52 | F11: 3.53 | G11: 3.57 | H11: 3.86 | I11: 3.99 | J11: 4.28
B12: 1998-12-10 | C12: 3.41 | D12: 3.45 | E12: 3.47 | F12: 3.47 | G12: 3.51 | H12: 3.81 | I12: 3.945 | J12: 4.21
B13: 1998-12-11 | C13: 3.41 | D13: 3.43 | E13: 3.45 | F13: 3.46 | G13: 3.51 | H13: 3.81 | I13: 3.94 | J13: 4.22
B14: 1998-12-14 | C14: 3.4 | D14: 3.42 | E14: 3.44 | F14: 3.47 | G14: 3.49 | H14: 3.79 | I14: 3.915 | J14: 4.19
B15: 1998-12-15 | C15: 3.47 | D15: 3.43 | E15: 3.48 | G15: 3.522 | H15: 3.82 | I15: 3.935 | J15: 4.205
B16: 1998-12-16 | C16: 3.5 | D16: 3.42 | E16: 3.48 | G16: 3.53 | H16: 3.825 | I16: 3.94 | J16: 4.195
B17: 1998-12-17 | C17: 3.47 | D17: 3.41 | E17: 3.48 | F17: 3.5 | G17: 3.54 | H17: 3.84 | I17: 3.95 | J17: 4.205
B18: 1998-12-18 | C18: 3.48 | D18: 3.4 | E18: 3.47 | F18: 3.5 | G18: 3.535 | H18: 3.83 | I18: 3.945 | J18: 4.205
B19: 1998-12-21 | C19: 3.48 | D19: 3.41 | E19: 3.48 | F19: 3.5 | G19: 3.545 | H19: 3.835 | I19: 3.95 | J19: 4.205
B20: 1998-12-22 | C20: 3.48 | D20: 3.41 | E20: 3.5 | F20: 3.53 | G20: 3.58 | H20: 3.88 | I20: 3.995 | J20: 4.26
B21: 1998-12-23 | C21: 3.48 | D21: 3.41 | E21: 3.5 | F21: 3.53 | G21: 3.575 | H21: 3.865 | I21: 3.985 | J21: 4.245
B22: 1998-12-28 | C22: 3.48 | D22: 3.43 | E22: 3.52 | F22: 3.56 | G22: 3.595 | H22: 3.89 | I22: 4.005 | J22: 4.27
B23: 1998-12-29 | C23: 3.47 | D23: 3.44 | E23: 3.49 | F23: 3.54 | G23: 3.59 | H23: 3.87 | I23: 3.99 | J23: 4.245
B24: 1998-12-30 | C24: 3.46 | D24: 3.43 | E24: 3.48 | F24: 3.53 | G24: 3.552 | H24: 3.815 | I24: 3.93 | J24: 4.185
B25: 1999-01-04 | C25: 3.45 | D25: 3.38 | E25: 3.43 | F25: 3.47 | G25: 3.51 | H25: 3.74 | I25: 3.96 | J25: 4.09
B26: 1999-01-05 | C26: 3.48 | D26: 3.36 | E26: 3.41 | F26: 3.45 | G26: 3.535 | H26: 3.685 | I26: 3.905 | J26: 4.035
B27: 1999-01-07 | C27: 3.46 | D27: 3.32 | E27: 3.35 | F27: 3.39 | G27: 3.465 | H27: 3.64 | I27: 3.879 | J27: 4.02
B28: 1999-01-08 | C28: 3.46 | D28: 3.31 | E28: 3.33 | F28: 3.36 | G28: 3.445 | H28: 3.635 | I28: 3.91 | J28: 4.05
B29: 1999-01-11 | C29: 3.46 | D29: 3.31 | E29: 3.32 | F29: 3.36 | G29: 3.455 | H29: 3.68 | I29: 3.98 | J29: 4.13
B30: 1999-01-12 | C30: 3.48 | D30: 3.33 | E30: 3.35 | F30: 3.38 | G30: 3.47 | H30: 3.69 | I30: 3.96 | J30: 4.111
B31: 1999-01-13 | C31: 3.47 | D31: 3.28 | E31: 3.29 | F31: 3.34 | G31: 3.395 | H31: 3.62 | I31: 3.895 | J31: 4.045
B32: 1999-01-14 | C32: 3.48 | D32: 3.28 | E32: 3.3 | F32: 3.34 | G32: 3.415 | H32: 3.625 | I32: 3.895 | J32: 4.045
B33: 1999-01-15 | C33: 3.465 | D33: 3.255 | E33: 3.27 | F33: 3.28 | G33: 3.36 | H33: 3.57 | I33: 3.845 | J33: 4.005
B34: 1999-01-18 | C34: 3.46 | D34: 3.23 | E34: 3.23 | F34: 3.25 | G34: 3.33 | H34: 3.545 | I34: 3.835 | J34: 3.99
B35: 1999-01-19 | C35: 3.47 | D35: 3.25 | E35: 3.24 | F35: 3.255 | G35: 3.364 | H35: 3.571 | I35: 3.867 | J35: 4.03
B36: 1999-01-20 | C36: 3.48 | D36: 3.25 | E36: 3.25 | F36: 3.27 | G36: 3.365 | H36: 3.58 | I36: 3.87 | J36: 4.025
B37: 1999-01-21 | C37: 3.46 | D37: 3.24 | E37: 3.24 | F37: 3.23 | G37: 3.345 | H37: 3.55 | I37: 3.835 | J37: 3.98
B38: 1999-01-22 | C38: 3.46 | D38: 3.23 | E38: 3.24 | F38: 3.22 | G38: 3.295 | H38: 3.515 | I38: 3.795 | J38: 3.95
B39: 1999-01-25 | C39: 3.47 | D39: 3.24 | E39: 3.23 | F39: 3.21 | G39: 3.275 | H39: 3.5 | I39: 3.78 | J39: 3.935
B40: 1999-01-26 | C40: 3.48 | D40: 3.23 | E40: 3.23 | F40: 3.21 | G40: 3.275 | H40: 3.51 | I40: 3.795 | J40: 3.95
B41: 1999-01-27 | C41: 3.54 | D41: 3.24 | E41: 3.22 | F41: 3.19 | G41: 3.27 | H41: 3.505 | I41: 3.81 | J41: 3.965
B42: 1999-01-28 | C42: 3.15 | D42: 3.21 | E42: 3.21 | F42: 3.2 | G42: 3.295 | H42: 3.525 | I42: 3.835 | J42: 3.99
B43: 1999-01-29 | C43: 3.14 | D43: 3.21 | E43: 3.22 | F43: 3.21 | G43: 3.305 | H43: 3.53 | I43: 3.83 | J43: 3.985
B44: 1999-02-01 | C44: 3.14 | D44: 3.21 | E44: 3.23 | F44: 3.22 | G44: 3.323 | H44: 3.541 | I44: 3.839 | J44: 3.993
B45: 1999-02-02 | C45: 3.13 | D45: 3.21 | E45: 3.24 | F45: 3.24 | G45: 3.34 | H45: 3.58 | I45: 3.885 | J45: 4.035
B46: 1999-02-03 | C46: 3.11 | D46: 3.2 | E46: 3.25 | F46: 3.26 | G46: 3.37 | H46: 3.615 | I46: 3.925 | J46: 4.08
B47: 1999-02-04 | C47: 3.1 | D47: 3.2 | E47: 3.26 | F47: 3.27 | G47: 3.41 | H47: 3.67 | I47: 3.99 | J47: 4.145
B48: 1999-02-05 | C48: 3.09 | D48: 3.2 | E48: 3.26 | F48: 3.27 | G48: 3.405 | H48: 3.67 | I48: 3.985 | J48: 4.14
B49: 1999-02-08 | C49: 3.06 | D49: 3.18 | E49: 3.27 | F49: 3.28 | G49: 3.405 | H49: 3.68 | I49: 4.015 | J49: 4.175
B50: 1999-02-09 | C50: 3.04 | D50: 3.17 | E50: 3.22 | F50: 3.25 | G50: 3.36 | H50: 3.64 | I50: 3.98 | J50: 4.14
B51: 1999-02-10 | C51: 3.04 | D51: 3.16 | E51: 3.21 | F51: 3.24 | G51: 3.355 | H51: 3.63 | I51: 3.97 | J51: 4.13
B52: 1999-02-11 | C52: 3.02 | D52: 3.15 | E52: 3.19 | F52: 3.24 | G52: 3.355 | H52: 3.615 | I52: 3.95 | J52: 4.11
B53: 1999-02-12 | C53: 2.93 | D53: 3.09 | E53: 3.14 | F53: 3.2 | G53: 3.35 | H53: 3.655 | I53: 4.01 | J53: 4.18
B54: 1999-02-15 | C54: 2.89 | D54: 3.07 | E54: 3.12 | F54: 3.19 | G54: 3.36 | H54: 3.705 | I54: 4.075 | J54: 4.255
B55: 1999-02-16 | C55: 2.9 | D55: 3.06 | E55: 3.12 | F55: 3.18 | G55: 3.335 | H55: 3.69 | I55: 4.03 | J55: 4.21
B56: 1999-02-17 | C56: 2.9 | D56: 3.06 | E56: 3.12 | F56: 3.18 | G56: 3.335 | H56: 3.7 | I56: 4.05 | J56: 4.235
B57: 1999-02-18 | C57: 2.89 | D57: 3.06 | E57: 3.12 | F57: 3.18 | G57: 3.32 | H57: 3.69 | I57: 4.06 | J57: 4.24
B58: 1999-02-19 | C58: 2.88 | D58: 3.07 | E58: 3.11 | F58: 3.17 | G58: 3.32 | H58: 3.69 | I58: 4.05 | J58: 4.23
B59: 1999-02-22 | C59: 2.87 | D59: 3.06 | E59: 3.11 | F59: 3.16 | G59: 3.31 | H59: 3.68 | I59: 4.04 | J59: 4.22
B60: 1999-02-23 | C60: 2.87 | D60: 3.07 | E60: 3.12 | F60: 3.17 | G60: 3.335 | H60: 3.685 | I60: 4.02 | J60: 4.2
B61: 1999-02-24 | C61: 2.85 | D61: 3.08 | E61: 3.15 | F61: 3.19 | G61: 3.346 | H61: 3.705 | I61: 4.034 | J61: 4.215
B62: 1999-02-25 | C62: 3.2 | D62: 3.19 | E62: 3.22 | F62: 3.23 | G62: 3.374 | H62: 3.755 | I62: 4.117 | J62: 4.305
B63: 1999-02-26 | C63: 3.22 | D63: 3.22 | E63: 3.25 | F63: 3.26 | G63: 3.455 | H63: 3.855 | I63: 4.22 | J63: 4.41
B64: 1999-03-01 | C64: 3.23 | D64: 3.23 | E64: 3.28 | F64: 3.31 | G64: 3.555 | H64: 3.985 | I64: 4.365 | J64: 4.555
B65: 1999-03-02 | C65: 3.22 | D65: 3.225 | E65: 3.28 | F65: 3.315 | G65: 3.55 | H65: 3.965 | I65: 4.315 | J65: 4.5
B66: 1999-03-03 | C66: 3.22 | D66: 3.23 | E66: 3.29 | F66: 3.31 | G66: 3.56 | H66: 3.97 | I66: 4.33 | J66: 4.515
B67: 1999-03-04 | C67: 3.235 | D67: 3.24 | E67: 3.29 | F67: 3.32 | G67: 3.58 | H67: 4.001 | I67: 4.375 | J67: 4.56
B68: 1999-03-05 | C68: 3.19 | D68: 3.21 | E68: 3.23 | F68: 3.26 | G68: 3.465 | H68: 3.86 | I68: 4.225 | J68: 4.41
B69: 1999-03-08 | C69: 3.2 | D69: 3.2 | E69: 3.24 | F69: 3.26 | G69: 3.475 | H69: 3.88 | I69: 4.265 | J69: 4.45
B70: 1999-03-09 | C70: 3.21 | D70: 3.225 | E70: 3.25 | F70: 3.28 | G70: 3.478 | H70: 3.903 | I70: 4.299 | J70: 4.484
B71: 1999-03-10 | C71: 3.21 | D71: 3.22 | E71: 3.24 | F71: 3.29 | G71: 3.49 | H71: 3.92 | I71: 4.355 | J71: 4.535
B72: 1999-03-11 | C72: 3.23 | D72: 3.23 | E72: 3.25 | F72: 3.29 | G72: 3.5 | H72: 3.905 | I72: 4.33 | J72: 4.51
B73: 1999-03-12 | C73: 3.21 | D73: 3.21 | E73: 3.23 | F73: 3.26 | G73: 3.44 | H73: 3.83 | I73: 4.235 | J73: 4.42
B74: 1999-03-15 | C74: 3.2 | D74: 3.2 | E74: 3.23 | F74: 3.28 | G74: 3.46 | H74: 3.855 | I74: 4.26 | J74: 4.445
B75: 1999-03-16 | C75: 3.21 | D75: 3.19 | E75: 3.23 | F75: 3.28 | G75: 3.455 | H75: 3.84 | I75: 4.245 | J75: 4.43
B76: 1999-03-17 | C76: 3.2 | D76: 3.17 | E76: 3.18 | F76: 3.22 | G76: 3.376 | H76: 3.75 | I76: 4.145 | J76: 4.325
B77: 1999-03-18 | C77: 3.16 | D77: 3.14 | E77: 3.15 | F77: 3.17 | G77: 3.315 | H77: 3.7 | I77: 4.16 | J77: 4.34
B78: 1999-03-19 | C78: 3.175 | D78: 3.14 | E78: 3.14 | F78: 3.16 | G78: 3.315 | H78: 3.685 | I78: 4.13 | J78: 4.31
B79: 1999-03-22 | C79: 3.14 | D79: 3.12 | E79: 3.11 | F79: 3.14 | G79: 3.3 | H79: 3.7 | I79: 4.175 | J79: 4.365
B80: 1999-03-23 | C80: 3.14 | D80: 3.12 | E80: 3.12 | F80: 3.15 | G80: 3.33 | H80: 3.74 | I80: 4.25 | J80: 4.45
B81: 1999-03-24 | C81: 3.09 | D81: 3.07 | E81: 3.08 | F81: 3.11 | G81: 3.29 | H81: 3.705 | I81: 4.2 | J81: 4.39
B82: 1999-03-25 | C82: 3.03 | D82: 3 | E82: 3.01 | F82: 3.04 | G82: 3.224 | H82: 3.659 | I82: 4.154 | J82: 4.354
B83: 1999-03-26 | C83: 3.04 | D83: 3 | E83: 3.01 | F83: 3.04 | G83: 3.235 | H83: 3.7 | I83: 4.25 | J83: 4.465
B84: 1999-03-29 | C84: 2.89 | D84: 2.92 | E84: 2.95 | F84: 3.01 | G84: 3.205 | H84: 3.7 | I84: 4.27 | J84: 4.485
B85: 1999-03-30 | C85: 2.88 | D85: 2.905 | E85: 2.95 | F85: 3 | G85: 3.181 | H85: 3.645 | I85: 4.2 | J85: 4.42
B86: 1999-03-31 | C86: 2.88 | D86: 2.89 | E86: 2.95 | F86: 2.99 | G86: 3.15 | H86: 3.605 | I86: 4.145 | J86: 4.375
B87: 1999-04-01 | C87: 2.87 | D87: 2.89 | E87: 2.93 | F87: 2.99 | G87: 3.15 | H87: 3.6 | I87: 4.13 | J87: 4.365
B88: 1999-04-06 | C88: 2.88 | D88: 2.89 | E88: 2.93 | F88: 2.99 | G88: 3.13 | H88: 3.55 | I88: 4.075 | J88: 4.315
B89: 1999-04-07 | C89: 2.88 | D89: 2.88 | E89: 2.92 | F89: 2.97 | G89: 3.123 | H89: 3.505 | I89: 4 | J89: 4.26
B90: 1999-04-08 | C90: 2.88 | D90: 2.88 | E90: 2.92 | F90: 2.98 | G90: 3.13 | H90: 3.515 | I90: 3.99 | J90: 4.255
B91: 1999-04-09 | C91: 2.855 | D91: 2.815 | E91: 2.835 | F91: 2.875 | G91: 3.02 | H91: 3.42 | I91: 3.9 | J91: 4.17
B92: 1999-04-12 | C92: 2.87 | D92: 2.84 | E92: 2.88 | F92: 2.94 | G92: 3.085 | H92: 3.515 | I92: 3.98 | J92: 4.25
B93: 1999-04-13 | C93: 2.89 | D93: 2.87 | E93: 2.9 | F93: 2.94 | G93: 3.065 | H93: 3.48 | I93: 3.935 | J93: 4.205
B94: 1999-04-14 | C94: 2.89 | D94: 2.875 | E94: 2.9 | F94: 2.95 | G94: 3.085 | H94: 3.49 | I94: 3.935 | J94: 4.185
B95: 1999-04-15 | C95: 2.9 | D95: 2.88 | E95: 2.91 | F95: 2.96 | G95: 3.125 | H95: 3.525 | I95: 3.955 | J95: 4.205
B96: 1999-04-16 | C96: 2.91 | D96: 2.88 | E96: 2.91 | F96: 2.97 | G96: 3.17 | H96: 3.565 | I96: 3.975 | J96: 4.215
B97: 1999-04-19 | C97: 2.89 | D97: 2.87 | E97: 2.9 | F97: 2.96 | G97: 3.155 | H97: 3.575 | I97: 4.01 | J97: 4.25
B98: 1999-04-20 | C98: 2.88 | D98: 2.83 | E98: 2.88 | F98: 2.94 | G98: 3.125 | H98: 3.525 | I98: 3.965 | J98: 4.21
B99: 1999-04-21 | C99: 2.89 | D99: 2.82 | E99: 2.87 | F99: 2.93 | G99: 3.095 | H99: 3.5 | I99: 3.945 | J99: 4.185
B100: 1999-04-22 | C100: 2.9 | D100: 2.84 | E100: 2.88 | F100: 2.94 | G100: 3.1 | H100: 3.52 | I100: 3.97 | J100: 4.215
B101: 1999-04-23 | C101: 2.92 | D101: 2.9 | E101: 2.91 | F101: 2.98 | G101: 3.135 | H101: 3.545 | I101: 4 | J101: 4.29
B102: 1999-04-26 | C102: 2.91 | D102: 2.91 | E102: 2.92 | F102: 2.99 | G102: 3.14 | H102: 3.57 | I102: 4.03 | J102: 4.275
B103: 1999-04-27 | C103: 2.92 | D103: 2.9 | E103: 2.92 | F103: 2.98 | G103: 3.13 | H103: 3.555 | I103: 4.005 | J103: 4.255
B104: 1999-04-28 | C104: 2.915 | D104: 2.88 | E104: 2.91 | F104: 2.98 | G104: 3.16 | H104: 3.61 | I104: 4.055 | J104: 4.3
B105: 1999-04-29 | C105: 2.9 | D105: 2.89 | E105: 2.93 | F105: 2.97 | G105: 3.14 | H105: 3.57 | I105: 4.01 | J105: 4.25
B106: 1999-04-30 | C106: 2.855 | D106: 2.84 | E106: 2.91 | F106: 2.92 | G106: 3.06 | H106: 3.485 | I106: 3.92 | J106: 4.165
B107: 1999-05-03 | C107: 2.87 | D107: 2.86 | E107: 2.895 | F107: 2.94 | G107: 3.11 | H107: 3.55 | I107: 3.995 | J107: 4.235
B108: 1999-05-04 | C108: 2.87 | D108: 2.85 | E108: 2.89 | F108: 2.94 | G108: 3.115 | H108: 3.57 | I108: 4.03 | J108: 4.27
B109: 1999-05-05 | C109: 2.885 | D109: 2.88 | E109: 2.92 | F109: 2.98 | G109: 3.165 | H109: 3.645 | I109: 4.125 | J109: 4.37
B110: 1999-05-06 | C110: 2.94 | D110: 2.94 | E110: 2.98 | F110: 3.06 | G110: 3.275 | H110: 3.775 | I110: 4.245 | J110: 4.49
B111: 1999-05-07 | C111: 2.92 | D111: 2.92 | E111: 2.95 | F111: 3.05 | G111: 3.26 | H111: 3.74 | I111: 4.18 | J111: 4.425
B112: 1999-05-10 | C112: 2.93 | D112: 2.925 | E112: 2.95 | F112: 3.07 | G112: 3.315 | H112: 3.805 | I112: 4.265 | J112: 4.505
B113: 1999-05-11 | C113: 2.91 | D113: 2.88 | E113: 2.92 | F113: 3.02 | G113: 3.23 | H113: 3.735 | I113: 4.215 | J113: 4.455
B114: 1999-05-12 | C114: 2.94 | D114: 2.9 | E114: 2.92 | F114: 3.02 | G114: 3.255 | H114: 3.79 | I114: 4.31 | J114: 4.555
B115: 1999-05-14 | C115: 2.96 | D115: 2.9 | E115: 2.93 | F115: 3.03 | G115: 3.28 | H115: 3.83 | I115: 4.355 | J115: 4.605
B116: 1999-05-17 | C116: 2.95 | D116: 2.9 | E116: 2.95 | F116: 3.05 | G116: 3.295 | H116: 3.84 | I116: 4.36 | J116: 4.605
B117: 1999-05-18 | C117: 2.92 | D117: 2.89 | E117: 2.92 | F117: 3.04 | G117: 3.26 | H117: 3.805 | I117: 4.3 | J117: 4.55
B118: 1999-05-19 | C118: 2.94 | D118: 2.91 | E118: 2.95 | F118: 3.08 | G118: 3.31 | H118: 3.85 | I118: 4.325 | J118: 4.575
B119: 1999-05-20 | C119: 2.99 | D119: 2.95 | E119: 3 | F119: 3.13 | G119: 3.35 | H119: 3.865 | I119: 4.305 | J119: 4.55
B120: 1999-05-21 | C120: 3 | D120: 2.95 | E120: 3 | F120: 3.13 | G120: 3.375 | H120: 3.89 | I120: 4.305 | J120: 4.54
B121: 1999-05-25 | C121: 3.01 | D121: 2.965 | E121: 3 | F121: 3.14 | G121: 3.405 | H121: 3.92 | I121: 4.32 | J121: 4.555
B122: 1999-05-26 | C122: 3.04 | D122: 2.98 | E122: 2.99 | F122: 3.1 | G122: 3.35 | H122: 3.86 | I122: 4.28 | J122: 4.515
B123: 1999-05-27 | C123: 2.9 | D123: 2.955 | E123: 2.99 | F123: 3.13 | G123: 3.365 | H123: 3.88 | I123: 4.32 | J123: 4.55
B124: 1999-05-28 | C124: 2.93 | D124: 2.99 | E124: 3.04 | G124: 3.445 | H124: 3.925 | I124: 4.36 | J124: 4.585
B125: 1999-05-31 | C125: 2.96 | D125: 3 | E125: 3.06 | G125: 3.47 | H125: 3.955 | I125: 4.385 | J125: 4.615
B126: 1999-06-01 | C126: 2.97 | D126: 3.01 | E126: 3.09 | F126: 3.35 | G126: 3.57 | H126: 4.06 | I126: 4.495 | J126: 4.705
B127: 1999-06-02 | C127: 2.95 | D127: 3.02 | E127: 3.09 | F127: 3.39 | G127: 3.63 | H127: 4.155 | I127: 4.595 | J127: 4.815
B128: 1999-06-03 | C128: 2.95 | D128: 2.97 | E128: 3.05 | F128: 3.34 | G128: 3.54 | H128: 4.08 | I128: 4.505 | J128: 4.725
B129: 1999-06-04 | C129: 2.95 | D129: 2.99 | E129: 3.06 | F129: 3.365 | G129: 3.625 | H129: 4.18 | I129: 4.59 | J129: 4.805
B130: 1999-06-07 | C130: 2.92 | D130: 2.97 | E130: 3.08 | F130: 3.37 | G130: 3.61 | H130: 4.17 | I130: 4.57 | J130: 4.78
B131: 1999-06-08 | C131: 2.95 | D131: 2.99 | E131: 3.05 | F131: 3.34 | G131: 3.575 | H131: 4.125 | I131: 4.52 | J131: 4.73
B132: 1999-06-09 | C132: 2.93 | D132: 2.98 | E132: 3.04 | F132: 3.32 | G132: 3.61 | H132: 4.175 | I132: 4.58 | J132: 4.79
B133: 1999-06-10 | C133: 2.95 | D133: 2.99 | E133: 3.03 | F133: 3.36 | G133: 3.675 | H133: 4.26 | I133: 4.685 | J133: 4.905
B134: 1999-06-11 | C134: 2.905 | D134: 2.97 | E134: 3.06 | F134: 3.38 | G134: 3.74 | H134: 4.295 | I134: 4.69 | J134: 4.9
B135: 1999-06-14 | C135: 2.92 | D135: 2.97 | E135: 3.03 | F135: 3.38 | G135: 3.73 | H135: 4.295 | I135: 4.675 | J135: 4.88
B136: 1999-06-15 | C136: 2.95 | D136: 2.95 | E136: 2.99 | F136: 3.36 | G136: 3.71 | H136: 4.28 | I136: 4.655 | J136: 4.855
B137: 1999-06-16 | C137: 2.92 | D137: 2.97 | E137: 2.99 | F137: 3.36 | G137: 3.695 | H137: 4.245 | I137: 4.62 | J137: 4.81
B138: 1999-06-17 | C138: 2.91 | D138: 2.96 | E138: 2.97 | F138: 3.33 | G138: 3.7 | H138: 4.25 | I138: 4.615 | J138: 4.805
B139: 1999-06-18 | C139: 2.91 | D139: 2.96 | E139: 2.95 | F139: 3.32 | G139: 3.67 | H139: 4.21 | I139: 4.565 | J139: 4.745
B140: 1999-06-21 | C140: 2.855 | D140: 2.925 | E140: 2.96 | F140: 3.33 | G140: 3.71 | H140: 4.255 | I140: 4.615 | J140: 4.8
B141: 1999-06-22 | C141: 2.92 | D141: 2.97 | E141: 2.98 | F141: 3.38 | G141: 3.78 | H141: 4.355 | I141: 4.74 | J141: 4.93
B142: 1999-06-23 | C142: 2.86 | D142: 2.93 | E142: 2.99 | F142: 3.41 | G142: 3.84 | H142: 4.44 | I142: 4.83 | J142: 5.03
B143: 1999-06-24 | C143: 2.91 | D143: 2.95 | E143: 2.97 | F143: 3.4 | G143: 3.885 | H143: 4.5 | I143: 4.89 | J143: 5.08
B144: 1999-06-28 | C144: 2.93 | D144: 2.99 | E144: 3 | F144: 3.45 | G144: 3.915 | H144: 4.535 | I144: 4.9 | J144: 5.09
B145: 1999-06-29 | C145: 2.96 | D145: 2.96 | E145: 3.12 | G145: 3.95 | H145: 4.53 | I145: 4.88 | J145: 5.05
B146: 1999-06-30 | C146: 2.92 | D146: 2.925 | E146: 3.11 | G146: 3.945 | H146: 4.54 | I146: 4.875 | J146: 5.055
B147: 1999-07-01 | C147: 2.98 | D147: 2.99 | E147: 3.095 | F147: 3.47 | G147: 3.97 | H147: 4.58 | I147: 4.945 | J147: 5.125
B148: 1999-07-02 | C148: 2.92 | D148: 2.99 | E148: 3.115 | F148: 3.5 | G148: 3.985 | H148: 4.66 | I148: 5.025 | J148: 5.21
B149: 1999-07-05 | C149: 2.97 | D149: 2.97 | E149: 3.125 | F149: 3.51 | G149: 4.005 | H149: 4.68 | I149: 5.045 | J149: 5.23
B150: 1999-07-06 | C150: 3 | D150: 3.02 | E150: 3.205 | F150: 3.6 | G150: 4.125 | H150: 4.8 | I150: 5.155 | J150: 5.335
B151: 1999-07-07 | C151: 3.04 | D151: 3.06 | E151: 3.275 | F151: 3.67 | G151: 4.175 | H151: 4.865 | I151: 5.205 | J151: 5.37
B152: 1999-07-08 | C152: 3.02 | D152: 3.07 | E152: 3.295 | F152: 3.78 | G152: 4.38 | H152: 5.07 | I152: 5.355 | J152: 5.49
B153: 1999-07-09 | C153: 2.96 | D153: 3.04 | E153: 3.23 | F153: 3.655 | G153: 4.24 | H153: 4.95 | I153: 5.225 | J153: 5.36
B154: 1999-07-12 | C154: 2.97 | D154: 3.04 | E154: 3.145 | F154: 3.57 | G154: 4.145 | H154: 4.88 | I154: 5.175 | J154: 5.315
B155: 1999-07-13 | C155: 2.935 | D155: 2.97 | E155: 3.135 | F155: 3.55 | G155: 4.1 | H155: 4.76 | I155: 5.06 | J155: 5.195
B156: 1999-07-14 | C156: 3.02 | D156: 3.02 | E156: 3.155 | F156: 3.59 | G156: 4.15 | H156: 4.775 | I156: 5.1 | J156: 5.235
B157: 1999-07-15 | C157: 3.01 | D157: 3.02 | E157: 3.145 | F157: 3.59 | G157: 4.18 | H157: 4.81 | I157: 5.105 | J157: 5.24
B158: 1999-07-16 | C158: 2.945 | D158: 2.985 | E158: 3.17 | F158: 3.625 | G158: 4.215 | H158: 4.87 | I158: 5.17 | J158: 5.295
B159: 1999-07-19 | C159: 3.01 | D159: 2.97 | E159: 3.17 | F159: 3.62 | G159: 4.225 | H159: 4.875 | I159: 5.185 | J159: 5.3
B160: 1999-07-20 | C160: 3 | D160: 3.01 | E160: 3.15 | F160: 3.58 | G160: 4.17 | H160: 4.805 | I160: 5.12 | J160: 5.235
B161: 1999-07-21 | C161: 3.01 | D161: 3 | E161: 3.11 | F161: 3.53 | G161: 4.11 | H161: 4.715 | I161: 5.01 | J161: 5.12
B162: 1999-07-22 | C162: 2.98 | D162: 2.99 | E162: 3.1 | F162: 3.52 | G162: 4.085 | H162: 4.69 | I162: 4.98 | J162: 5.105
B163: 1999-07-23 | C163: 3 | D163: 3.01 | E163: 3.14 | F163: 3.585 | G163: 4.18 | H163: 4.77 | I163: 5.06 | J163: 5.175
B164: 1999-07-26 | C164: 3.06 | D164: 3.02 | E164: 3.15 | F164: 3.59 | G164: 4.2 | H164: 4.795 | I164: 5.1 | J164: 5.215
B165: 1999-07-27 | C165: 3.05 | D165: 3.03 | E165: 3.14 | F165: 3.6 | G165: 4.225 | H165: 4.81 | I165: 5.105 | J165: 5.215
B166: 1999-07-28 | C166: 3.07 | D166: 3.01 | E166: 3.1 | F166: 3.59 | G166: 4.23 | H166: 4.82 | I166: 5.11 | J166: 5.225
B167: 1999-07-29 | C167: 2.99 | D167: 2.98 | E167: 3.19 | F167: 3.6 | G167: 4.275 | H167: 4.88 | I167: 5.18 | J167: 5.3
B168: 1999-07-30 | C168: 2.98 | D168: 2.98 | E168: 3.19 | F168: 3.61 | G168: 4.335 | H168: 4.935 | I168: 5.225 | J168: 5.34
B169: 1999-08-02 | C169: 2.99 | D169: 2.985 | E169: 3.25 | F169: 3.665 | G169: 4.435 | H169: 5.045 | I169: 5.32 | J169: 5.43
B170: 1999-08-03 | C170: 2.975 | D170: 2.98 | E170: 3.23 | F170: 3.64 | G170: 4.435 | H170: 5.055 | I170: 5.325 | J170: 5.425
B171: 1999-08-04 | C171: 2.99 | D171: 2.97 | E171: 3.26 | F171: 3.66 | G171: 4.455 | H171: 5.1 | I171: 5.395 | J171: 5.495
B172: 1999-08-05 | C172: 2.98 | D172: 2.97 | E172: 3.25 | F172: 3.66 | G172: 4.52 | H172: 5.185 | I172: 5.495 | J172: 5.605
B173: 1999-08-06 | C173: 2.985 | D173: 3 | E173: 3.25 | F173: 3.7 | G173: 4.58 | H173: 5.265 | I173: 5.595 | J173: 5.705
B174: 1999-08-09 | C174: 3.01 | D174: 3 | E174: 3.27 | F174: 3.77 | G174: 4.705 | H174: 5.405 | I174: 5.73 | J174: 5.835
B175: 1999-08-10 | C175: 2.985 | D175: 3 | E175: 3.27 | F175: 3.76 | G175: 4.675 | H175: 5.335 | I175: 5.615 | J175: 5.7
B176: 1999-08-11 | C176: 3.03 | D176: 3.005 | E176: 3.23 | F176: 3.67 | G176: 4.585 | H176: 5.24 | I176: 5.525 | J176: 5.61
B177: 1999-08-12 | C177: 3.01 | D177: 3 | E177: 3.16 | F177: 3.55 | G177: 4.36 | H177: 5.05 | I177: 5.395 | J177: 5.51
B178: 1999-08-13 | C178: 3.04 | D178: 3 | E178: 3.16 | F178: 3.55 | G178: 4.34 | H178: 5.035 | I178: 5.365 | J178: 5.475
B179: 1999-08-16 | C179: 3 | D179: 2.97 | E179: 3.16 | F179: 3.57 | G179: 4.41 | H179: 5.1 | I179: 5.415 | J179: 5.51
B180: 1999-08-17 | C180: 3 | D180: 2.98 | E180: 3.13 | F180: 3.545 | G180: 4.395 | H180: 5.07 | I180: 5.355 | J180: 5.455
B181: 1999-08-18 | C181: 3.03 | D181: 3 | E181: 3.13 | F181: 3.52 | G181: 4.405 | H181: 5.075 | I181: 5.36 | J181: 5.465
B182: 1999-08-19 | C182: 3.04 | D182: 3 | E182: 3.12 | F182: 3.52 | G182: 4.405 | H182: 5.055 | I182: 5.32 | J182: 5.415
B183: 1999-08-20 | C183: 3.02 | D183: 3.02 | E183: 3.11 | F183: 3.48 | G183: 4.342 | H183: 4.982 | I183: 5.277 | J183: 5.372
B184: 1999-08-23 | C184: 3.05 | D184: 3.02 | E184: 3.1 | F184: 3.45 | G184: 4.275 | H184: 4.92 | I184: 5.23 | J184: 5.33
B185: 1999-08-24 | C185: 3.08 | D185: 3.04 | E185: 3.13 | F185: 3.48 | G185: 4.325 | H185: 4.965 | I185: 5.275 | J185: 5.375
B186: 1999-08-25 | C186: 3.06 | D186: 3.04 | E186: 3.15 | F186: 3.44 | G186: 4.26 | H186: 4.9 | I186: 5.22 | J186: 5.32
B187: 1999-08-26 | C187: 3.1 | D187: 3 | E187: 3.2 | F187: 3.5 | G187: 4.32 | H187: 4.96 | I187: 5.26 | J187: 5.35
B188: 1999-08-27 | C188: 2.93 | D188: 3.02 | E188: 3.22 | F188: 3.53 | G188: 4.355 | H188: 5.005 | I188: 5.315 | J188: 5.4
B189: 1999-08-30 | C189: 3.015 | D189: 3.025 | E189: 3.28 | G189: 4.41 | H189: 5.085 | I189: 5.39 | J189: 5.475
B190: 1999-08-31 | C190: 2.96 | D190: 3.01 | E190: 3.26 | G190: 4.435 | H190: 5.14 | I190: 5.435 | J190: 5.52
B191: 1999-09-01 | C191: 2.92 | D191: 2.99 | E191: 3.32 | F191: 3.91 | G191: 4.515 | H191: 5.245 | I191: 5.53 | J191: 5.61
B192: 1999-09-02 | C192: 2.94 | D192: 2.99 | E192: 3.28 | F192: 3.87 | G192: 4.47 | H192: 5.265 | I192: 5.565 | J192: 5.65
B193: 1999-09-03 | C193: 2.94 | D193: 2.99 | E193: 3.25 | F193: 3.83 | G193: 4.35 | H193: 5.17 | I193: 5.47 | J193: 5.555
B194: 1999-09-06 | C194: 2.94 | D194: 2.99 | E194: 3.23 | F194: 3.79 | G194: 4.33 | H194: 5.12 | I194: 5.46 | J194: 5.545
B195: 1999-09-07 | C195: 2.93 | D195: 2.98 | E195: 3.24 | F195: 3.82 | G195: 4.36 | H195: 5.195 | I195: 5.495 | J195: 5.58
B196: 1999-09-08 | C196: 2.95 | D196: 3 | E196: 3.27 | F196: 3.93 | G196: 4.5 | H196: 5.285 | I196: 5.595 | J196: 5.67
B197: 1999-09-09 | C197: 2.95 | D197: 2.99 | E197: 3.27 | F197: 3.95 | G197: 4.56 | H197: 5.34 | I197: 5.655 | J197: 5.73
B198: 1999-09-10 | C198: 2.94 | D198: 2.98 | E198: 3.205 | F198: 3.91 | G198: 4.525 | H198: 5.315 | I198: 5.63 | J198: 5.71
B199: 1999-09-13 | C199: 2.9 | D199: 2.94 | E199: 3.16 | F199: 3.9 | G199: 4.565 | H199: 5.375 | I199: 5.68 | J199: 5.76
B200: 1999-09-14 | C200: 2.915 | D200: 3 | E200: 3.18 | F200: 3.91 | G200: 4.55 | H200: 5.37 | I200: 5.68 | J200: 5.765
B201: 1999-09-15 | C201: 2.95 | D201: 3 | E201: 3.19 | F201: 3.91 | G201: 4.535 | H201: 5.36 | I201: 5.665 | J201: 5.75
... 2317 more rows

Sheet Graph Interest Rates
